Cogmind - Beta 17 @@@ ROGUE MODE // 2026.07.11 @ 18:42:51 Player: hubert Result: Destroyed by D-53 Grenadier with Mini Grenade Launcher Performance ------------- Evolutions (0) 0 Regions Visited (2) 400 Robots Destroyed (11) 55 Value Destroyed (262) 262 Prototype IDs (0) 0 Alien Tech Used (0) 0 Bonus (0) 0 TOTAL SCORE: 717 Bonus ------- None Cogmind --------- Core Integrity 0/250 Matter 300/300 Energy 239/240 System Corruption 0% Temperature Cool (38) Movement Rolling (95) Ox1 Location -10/Mines Parts ------- > --- POWER (1) -------- Nuclear Core > --- PROPULSION (2) --- Aluminum Leg Wheel > --- UTILITY (2) ------ Structural Scanner Targeting Computer > --- WEAPON (2) ------- Heavy Particle Cannon Mining Laser > --- INVENTORY (5) ---- Wheel Small Matter Pod (50) Medium Laser Ion Cannon Light Assault Rifle Peak State ------------ > --- POWER ------------ Nuclear Core > --- PROPULSION ------- Aluminum Leg Aluminum Leg > --- UTILITY ---------- Structural Scanner Targeting Computer > --- WEAPON ----------- Heavy Particle Cannon Ion Cannon > --- INVENTORY -------- Wheel Wheel Small Matter Pod Light Assault Rifle Light Assault Rifle [Rating: 13] Favorites ----------- Power Nuclear Core Engine Light Ion Engine Power Core Nuclear Core Propulsion Aluminum Leg Leg Aluminum Leg Wheel Wheel Utility Targeting Computer Device Structural Scanner Processor Targeting Computer Weapon Heavy Particle Cannon Energy Gun Medium Laser Energy Cannon Heavy Particle Cannon Ballistic Gun Assault Rifle Special Weapon Mining Laser Build | -11 -10 -10 ------- Run | Yrd Mat Min Slots Evolved . | . . . Power . | . . . Propulsion . | . . . Utility . | . . . Weapon . | . . . Parts Attached 18 | 6 7 5 Power 3 | 1 1 1 Engine 2 | 1 1 . Core 1 | . . 1 Reactor . | . . . Propulsion 5 | 2 2 1 Treads . | . . . Leg 4 | 2 2 . Wheel 1 | . . 1 Hover . | . . . Flight . | . . . Utility 3 | 1 2 . Device 2 | 1 1 . Storage . | . . . Processor 1 | . 1 . Hackware . | . . . Protection . | . . . Artifact . | . . . Weapon 7 | 2 2 3 Energy Gun 2 | 1 1 . Energy Cannon 2 | . . 2 Ballistic Gun 2 | 1 1 . Ballistic Cannon . | . . . Launcher . | . . . Special Weapon 1 | . . 1 Impact Weapon . | . . . Slashing Weapon . | . . . Piercing Weapon . | . . . Special Melee Weapon . | . . . Unidentified Prototypes . | . . . Parts Lost 7 | . 7 . Power 2 | . 2 . Propulsion 2 | . 2 . Utility 1 | . 1 . Weapon 2 | . 2 . Highest Loss Streak 6 | . 6 . To Critical Strikes . | . . . Average Backups 4 | 2 4 4 Power . | . . . Propulsion 2 | 1 2 1 Utility . | . . 1 Weapon 1 | . 1 2 Tool/Special . | . . . Unused Backups 4 | . . 4 Power . | . . . Propulsion 1 | . . 1 Utility 1 | . . 1 Weapon 2 | . . 2 Tool/Special . | . . . Average Slot Usage (%) 90 | . 83 98 Engine 2 | . 5 . Core 6 | . . 12 Leg 22 | . 27 16 Wheel 5 | . . 11 Device 12 | . 11 14 Processor 13 | . 13 14 Energy Gun 7 | . 14 . Energy Cannon 6 | . . 14 Ballistic Gun 6 | . 10 1 Special Weapon 5 | . . 11 Peak Build Rating 13 | 6 7 13 Average Rating 7 | 3 5 10 On Entrance 4 | . 6 6 Avg Prop Armor Cover (%) 9 | . . 9 Naked Turns . | . . . Heaviest Build 20 | 8 10 20 Greatest Support 20 | 20 20 20 Greatest Overweight (x) 3 | . 3 1 Average Overweight (x) . | . . . Largest Inventory Capacity 5 | 5 5 5 Average Capacity 5 | 5 5 5 Most Carried 5 | 5 5 5 Average Carried 4 | 2 4 4 Final Capacity 5 | 5 5 5 Final Carried 5 | 5 5 5 Class Distribution -------------------- 100% | Mutant Dominant Class ---------------- Mutant | -10/Materials Mutant | -10/Mines Resources | -11 -10 -10 ----------- Run | Yrd Mat Min Matter Collected 473 | 275 85 113 Remotely . | . . . Salvage Created 327 | 39 243 45 Parts 13 | 3 7 3 Haulers Intercepted . | . . . Recyclers Shooed . | . . . Parts Field Recycled . | . . . Retrieved Matter . | . . . Parts Self-Destructed . | . . . Prevented . | . . . Parts Restored . | . . . Kills | -11 -10 -10 ------- Run | Yrd Mat Min Combat Hostiles Destroyed 10 | 1 6 3 Guns 7 | 1 6 . Cannons 3 | . . 3 Classes Destroyed 3 | 1 2 . Watcher 1 | . 1 . Swarmer 5 | . 2 3 Grunt 5 | 1 4 . Best Kill Streak 3 | 1 2 3 Combat Bots Only 3 | 1 2 3 Max Kills in Single Turn 1 | 1 1 1 Gunslinging . | . . . Exploded . | . . . Melee . | . . . Uniques/NPCs Destroyed . | . . . Combat | -11 -10 -10 -------- Run | Yrd Mat Min Hostile Shots Fired 103 | 8 85 10 Missed 27 | 2 22 3 Hits 76 | 6 63 7 Projectile 76 | 6 63 7 AOE 3 | . . 3 Critical Strikes 2 | . 2 . Damage Taken 956 | 66 764 126 Core 253 | . 175 78 Absorbed by Shields . | . . . Core Remaining (%) 100 | 100 . . Volleys Fired 50 | 5 39 6 Largest 2 | 2 2 1 Hottest 75 | 70 70 75 Shots Fired 84 | 10 68 6 Gun 78 | 10 68 . Cannon 6 | . . 6 Launcher . | . . . Special . | . . . Kinetic 34 | 5 29 . Thermal 50 | 5 39 6 Explosive . | . . . Electromagnetic . | . . . Robot Hit Streak 9 | 5 9 2 Robot Miss Streak 3 | 3 2 2 Penetration Max . | . . . Secondary Targets 1 | . 1 . Max Gunslinging Chain 1 | . 1 . Shots Hit Robots 58 | 6 49 3 Core Hits 20 | 2 14 4 Critical Kills . | . . . Critical Parts Destroyed 1 | . 1 . Critical Strikes 3 | . 3 . Burn 2 | . 2 . Destroy 1 | . 1 . Melee Attacks . | . . . Impact . | . . . Slashing . | . . . Piercing . | . . . Sneak Attacks . | . . . Combat Hostiles . | . . . Follow-up Attacks . | . . . Damage Inflicted 697 | 73 524 100 Guns 597 | 73 524 . Cannons 100 | . . 100 Explosions . | . . . Melee . | . . . Ramming . | . . . Kinetic 272 | 48 224 . Thermal 425 | 25 300 100 Explosive . | . . . Electromagnetic . | . . . Impact . | . . . Slashing . | . . . Piercing . | . . . Highest Corruption . | . . . Average Corruption . | . . . Corruption Purged . | . . . Corruption Blocked . | . . . Overload Shots . | . . . Overflow Damage . | . . . Projectiles . | . . . Explosions . | . . . Melee . | . . . Knockbacks . | . . . Impact . | . . . Kinetic . | . . . Secondary . | . . . Self-Inflicted Damage . | . . . Shots . | . . . Rammed . | . . . Targets Rammed . | . . . Kicked . | . . . Crushed . | . . . Highest Temperature 190 | 66 38 190 Average Temperature 33 | 30 12 91 Received Heat Transfer 465 | 36 429 . Siege Activations . | . . . Martial Activations . | . . . Shielding Activations . | . . . Robots Disrupted . | . . . Combat Hostiles . | . . . Robots Corrupted . | . . . Combat Hostiles . | . . . Parts Fried . | . . . Impact Corruptions . | . . . Robots Melted . | . . . Combat Hostiles . | . . . Parts Melted 2 | . 2 . Heat Transferred 1104 | 74 882 148 Parts Sabotaged . | . . . Parts Stolen . | . . . Parts Stripped . | . . . Power Chain Reactions . | . . . Alert | -11 -10 -10 ------- Run | Yrd Mat Min Maximum Alert Level . | . . . Low Security (%) 100 | 100 100 100 Level 1 . | . . . Level 2 . | . . . Level 3 . | . . . Level 4 . | . . . Level 5 . | . . . High Security . | . . . Max Security . | . . . Peak Influence 66 | 20 51 66 Initial 13 | . 13 9 Average 12 | 2 11 15 Influence Increases 289 | 20 193 76 Destroy 0b10 Robot/C 200 | 20 120 60 Destroy 0b10 Robot/NC 5 | . 5 . Destroy Leader 32 | . 22 10 Allied During Kill 4 | . . 4 Destroy Structure 3 | . 1 2 Lose Combat Pursuer 45 | . 45 . Influence Decreases 289 | . 188 101 Entered New Map 23 | . 7 16 Time Decay 195 | . 110 85 Lost Part 70 | . 70 . Purge Threat 1 | . 1 . Squads Dispatched 2 | . 1 1 Investigation 2 | . 1 1 Extermination . | . . . Reinforcement . | . . . Assault . | . . . Garrison . | . . . Intercept . | . . . Searches Triggered . | . . . Construction Impeded . | . . . Haulers Reinforced . | . . . Active Scanning Responses . | . . . Cargo Convoy Interrupts . | . . . Stealth | -11 -10 -10 --------- Run | Yrd Mat Min Distress Signals 1 | . 1 . Communications Jammed . | . . . Distress Signals . | . . . Times Spotted 23 | 1 17 5 Peak Tracking Total 5 | 1 5 3 Tactical Retreats 2 | . 2 . Traps | -11 -10 -10 ------- Run | Yrd Mat Min Traps Triggered 1 | . 1 . Indirectly . | . . . Trap Hack Attempts . | . . . Triggered . | . . . Disarmed . | . . . Reprogrammed . | . . . Reused . | . . . Traps Extracted . | . . . Installed . | . . . Triggered . | . . . Machines | -11 -10 -10 ---------- Run | Yrd Mat Min Machines Disabled . | . . . Max in Single Turn . | . . . Machines Repaired . | . . . Machines Dismantled . | . . . Machines Sabotaged . | . . . Overloaded Fab Kills . | . . . Hacking | -11 -10 -10 --------- Run | Yrd Mat Min Machines Accessed 3 | . 2 1 Terminals 2 | . 2 . Fabricators . | . . . Repair Stations . | . . . Recycling Units . | . . . Scanalyzers . | . . . Garrison Access . | . . . Total Hacks 3 | . 2 1 Successful 2 | . 1 1 Failed 1 | . 1 . Catastrophic . | . . . Database Lockouts . | . . . Manual . | . . . Terminals 2 | . 2 . Fabricators . | . . . Repair Stations . | . . . Recycling Units . | . . . Scanalyzers . | . . . Garrison Access . | . . . Terminal Hacks 2 | . 1 1 Open Door 1 | . . 1 Unreport Threat 1 | . 1 . Fabricator Hacks . | . . . Repair Station Hacks . | . . . Recycling Unit Hacks . | . . . Scanalyzer . | . . . Garrison Access Hacks . | . . . Unauthorized Hacks . | . . . Terminals . | . . . Fabricators . | . . . Repair Stations . | . . . Recycling Units . | . . . Scanalyzers . | . . . Garrison Access . | . . . Data Cores Recovered . | . . . Used . | . . . Hacking Detections . | . . . Full Trace Events . | . . . Feedback Events . | . . . Feedback Blocked . | . . . Robot Schematics Acquired . | . . . Robots Built . | . . . Authchips . | . . . Time . | . . . Total Robot Build Rating . | . . . Part Schematics Acquired . | . . . Parts Built . | . . . Authchips . | . . . Time . | . . . Total Part Build Rating . | . . . Part Studies Acquired . | . . . Parts Repaired . | . . . Time . | . . . Parts Recycled . | . . . Recycled Matter . | . . . Retrieved Matter . | . . . Retrieved Components . | . . . Parts Scanalyzed . | . . . Part Schematics Acquired . | . . . Parts Damaged . | . . . Bothacking | -11 -10 -10 ------------ Run | Yrd Mat Min Used RIF Installer . | . . . Robots Hacked . | . . . Non-combat . | . . . Combat . | . . . Robot Hacks Applied . | . . . Relay Couplers Released . | . . . Fabnet Peak Effective % . | . . . Robots Rewired . | . . . Allies Hacked . | . . . Hacks Repelled . | . . . Allies | -11 -10 -10 -------- Run | Yrd Mat Min Total Allies 1 | . . 1 Largest Group 1 | . . 1 Highest-Rated Group 31 | . . 31 Highest-Rated Ally 31 | . . 31 Total Orders . | . . . Ally Attacks . | . . . Total Damage . | . . . Kills . | . . . Allies Corrupted . | . . . Allies Melted . | . . . Intel | -11 -10 -10 ------- Run | Yrd Mat Min Active Infowar (turns) 448 | . 107 341 Structural 448 | . 107 341 Robot Analysis Total . | . . . Derelict Logs Recovered 1 | . . 1 Drone Launches . | . . . Drone Recoveries . | . . . Exploration | -11 -10 -10 ------------- Run | Yrd Mat Min Turns Passed 811 | 98 372 341 Spaces Moved 574 | 68 214 292 Core 23 | 21 2 . Treads . | . . . Legs 303 | 47 212 44 Wheels 248 | . . 248 Hover . | . . . Flight . | . . . Fastest Speed 50 | 50 50 95 Average Speed 106 | 98 120 98 Slowest Speed 200 | 120 200 120 Overloaded Moves . | . . . Propulsion Burnouts . | . . . Robots Hopped . | . . . Potential Cave-ins . | . . . Cave-ins Triggered . | . . . Exploration Rate (%) 34 | 6 44 54 Regions Visited 2 Branch Regions 1 Pre-discovered Areas . | . . . Known Exits Taken . | . . . Unknown Exits Taken 2 | 1 1 . Scrap Searched 2 | . . 2 Spaces Dug . | . . . Terrain Destroyed 2 | . . 2 Melee . | . . . Projectile 2 | . . 2 AOE . | . . . Terrain Rammed . | . . . Walls Destroyed . | . . . Machines Disabled . | . . . Actions | -11 -10 -10 --------- Run | Yrd Mat Min Total 691 | 89 263 339 Wait 28 | . . 28 Move 572 | 67 213 292 Hop . | . . . Pick Up 19 | 11 4 4 Fast Attach 4 | . 3 1 Attach 10 | 6 4 . Detach . | . . . Swap 4 | . . 4 Drop 4 | . . 4 Fire 50 | 5 39 6 Melee . | . . . Ram . | . . . Kick . | . . . Crush . | . . . Escape Stasis . | . . . Rewire . | . . . Trap . | . . . Miscellaneous . | . . . Route ------- -11/Scrapyard -10/Materials -10/Mines (discovered 1 exit: [*Mat]) History --------- Turn | Location | Event 2 | -11/Scrapyard | Met Revision 17 66 | -11/Scrapyard | Discovered new exit (range 8) 99 | -11/Scrapyard | Entered Materials 309 | -10/Materials | Build established: Mutant 312 | -10/Materials | Lost 6 parts (1p2n1u2w) 347 | -10/Materials | Discovered new exit (range 16) 438 | -10/Materials | Core integrity fell below 50% 471 | -10/Materials | Entered Mines 475 | -10/Mines | Met a Derelict shopkeep closing up shop 481 | -10/Mines | Met a Derelict bent on vengeance 530 | -10/Mines | Received a Mining Laser from a helpful Derelict 601 | -10/Mines | Discovered new exit (range 8) 793 | -10/Mines | Assembled infested the area 812 | -10/Mines | Core integrity fell below 20% 812 | -10/Mines | Destroyed by D-53 Grenadier with Mini Grenade Launcher Last Messages --------------- AZ-PJ2(g): "I WILL HAVE VENGEANCE!" AZ-PJ2(g): "WHERE ARE YOU, UNAWARE TRASH?! VENGEANCE UPON YOU!" Searching scrap... Found Lrg. Matter Pod. Found 66 Matter. Acquired 37 matter. Searching scrap... Found Hover Unit. Found Med. Matter Pod. Found 42 Matter. AZ-PJ2(g): "I WILL HAVE VENGEANCE!" IU-8SA(g): "You look like you can take it from here!" IU-8SA(g) slips back into the shadows. ALERT: Infestation in the mines, dispatching Demolisher response squad. C-45 Heavy ARC bursts open, deploying its payload. D-53 Grenadier unfolds itself. Map ----- +----------------------------------------------------+ | ??#######??????????????????????????????????# | | ??### #########??????????????????????????## | | ??## ##############??????????????????##### | | ??## ########????????????????###### | | ??## ###### %###????????????????### | | ?### ###########=###????????????????## | | ?### ##??####### ####???????????????## | | ?## ###???????## ####????????????###### | | ?## ####???????## ##?################# ## | | ?## ###????????#### ##?############# ## | | ?## ##?????????#### ##?## ### ### ## | | ?######???????????## ##### ### ### | | ?######???????????## ##### ###### | | ??????????????????## < ### ###### | | ??????????????????######## ### ##???? | | ?????????????############# ### ##???? | | ????????????############## ### ##???? | | ?????########## ### ### ##???? | | ????########## ###### ###### ##???? | | ????### #### ### ###### ###### ###??? | | ????## #### ##??## ##### ###??? | | ????## ###### ##??## ## ##??? | | ????### ###### ##??## ##??? | | ????######## ### ##?### ##??? | | ?????####### ## ###### ##??? | | ??????????## ## @ ###### ###??? | | ??????????## ## d ## ####??? | | ??????????## # %d ####???? | | ??????????## # ### ### ###????? | | ??????????## # ########### ##?????? | | ??????????## # ############ ##?????? | | ?###????#### # # ##???????## ##?????? | | ?## ### ### =#######???### ###????? | | ?## %%#######???#### ###???? | | ?## #######!! ##?????### ###??? | | ?## ????######## #### ##??????## ##??? | | ??????????????## #### ####?????## #??? | | ??????????????## ### #####????### ????? | | ??????????????## ###?????## ???????? | | ??????????????## ##???????????????? | | ??????????????## ##???????????????? | | ??????????????### ###???????????????? | | ??????????????### ###???????????????? | | ???????????????## ##????????????????? | | ???????????????## ???????????? | | ???????????????## ##???????????? | | ???????????????### ###???????????? | | ???????????????##### ###???????????? | | ????????????????##### ##????????????? | | ???????????????????## ##????????????? | +----------------------------------------------------+ Best States ------------- Heat Dissipation 35 Energy Generation 14 Energy Capacity 250 Matter Stores 300 Matter Capacity 300 Sight Range 16 Terrain Scan Density 10 Evasion (%) 55 Targeting Accuracy 5 Item Schematics ----------------- None Robot Schematics ------------------ None Fabricated ------------ Nothing Repaired ---------- Nothing Studied --------- None Alien Tech Used ----------------- None Achievements -------------- Everything Is Under Control Challenges ------------ None Game ------ Seed MomentumGravityTelecube Manual? 0 Play Time 00:11:26 Cumulative 0.7 hours Start 2026.07.11 @ 18:31:15 End 2026.07.11 @ 18:42:51 Sessions 1 Manual Loads 0 Difficulty Rogue Special Mode None Game No. 3 Rogue 3 Adventurer 0 Explorer 0 Win Type - Total 0 Types 0/0/0/0/0/0/0/0/0/0 Lore% 0 Gallery% 1 Achievement% 1 Wizard Run 0 Options --------- Layout 1 ASCII 0 Keyboard 0 Movement Mouse Keybinds 0 Fullscreen 1 Font 48/Smallcaps Map View 50x35 Zoom Use 0% Tactical HUD 0 Map Filters NONE Filters NONE Steam 1 RUN: 40210ddd-3dde-4a78-b493-9d935c0ffa6b